[Event "Titled Tuesday Blitz January 31 Late 2023"]
[White "Grigoriants, Sergey"]
[Black "Suder, Jakub"]
[WhiteFideId "4130804"]
[BlackFideId "1195310"]
[WhiteElo "2562"]
[BlackElo "2244"]
[Result "0-1"]
[Round "06"]
[TimeControl "180+2"]
[Date "2023.01.31"]
[WhiteClock "0:00:02"]
[BlackClock "0:00:26"]

1. d4 {[%clk 0:03:00]}  d5 {[%clk 0:02:52]} 2. c4 {[%clk 0:03:00]}  e6 {[%clk 0:02:49]} 3. Nc3 {[%clk 0:03:00]}  a6 {[%clk 0:02:48]} 4. cxd5 {[%clk 0:02:35]}  exd5 {[%clk 0:02:49]} 5. Nf3 {[%clk 0:02:34]}  Nf6 {[%clk 0:02:48]} 6. Bg5 {[%clk 0:02:33]}  Be6 {[%clk 0:02:48]} 7. e3 {[%clk 0:02:33]}  Nbd7 {[%clk 0:02:47]} 8. Bd3 {[%clk 0:02:33]}  Bd6 {[%clk 0:02:47]} 9. Bf4 {[%clk 0:02:27]}  Be7 {[%clk 0:02:45]} 10. h3 {[%clk 0:02:26]}  h6 {[%clk 0:02:41]} 11. O-O {[%clk 0:02:22]}  O-O {[%clk 0:02:41]} 12. Rc1 {[%clk 0:02:22]}  Re8 {[%clk 0:02:33]} 13. Bb1 {[%clk 0:02:13]}  Rc8 {[%clk 0:02:32]} 14. Qe2 {[%clk 0:02:00]}  c5 {[%clk 0:02:31]} 15. dxc5 {[%clk 0:01:59]}  Nxc5 {[%clk 0:02:30]} 16. Rfd1 {[%clk 0:02:00]}  Qb6 {[%clk 0:02:27]} 17. Nd4 {[%clk 0:01:57]}  Bd7 {[%clk 0:02:26]} 18. Nf5 {[%clk 0:01:42]}  Bxf5 {[%clk 0:02:26]} 19. Bxf5 {[%clk 0:01:41]}  Rcd8 {[%clk 0:02:26]} 20. Bb1 {[%clk 0:01:37]}  Bd6 {[%clk 0:02:08]} 21. Nxd5 {[%clk 0:01:27]}  Nxd5 {[%clk 0:02:08]} 22. Rxd5 {[%clk 0:01:28]}  Bxf4 {[%clk 0:02:06]} 23. Rdxc5 {[%clk 0:01:24]}  Bd6 {[%clk 0:01:59]} 24. R5c4 {[%clk 0:01:22]}  g6 {[%clk 0:01:56]} 25. h4 {[%clk 0:01:18]}  h5 {[%clk 0:01:56]} 26. g4 {[%clk 0:01:14]}  hxg4 {[%clk 0:01:54]} 27. Rxg4 {[%clk 0:01:12]}  Be5 {[%clk 0:01:54]} 28. b3 {[%clk 0:00:59]}  Bg7 {[%clk 0:01:51]} 29. Qf3 {[%clk 0:00:42]}  Re5 {[%clk 0:01:47]} 30. Rf4 {[%clk 0:00:23]}  f5 {[%clk 0:01:35]} 31. h5 {[%clk 0:00:22]}  Bh6 {[%clk 0:01:25]} 32. Rfc4 {[%clk 0:00:15]}  f4 {[%clk 0:01:05]} 33. Bxg6 {[%clk 0:00:06]}  Rf8 {[%clk 0:01:00]} 34. e4 {[%clk 0:00:07]}  Rg5+ {[%clk 0:00:57]} 35. Kf1 {[%clk 0:00:07]}  Bg7 {[%clk 0:00:54]} 36. Rc8 {[%clk 0:00:06]}  Qb5+ {[%clk 0:00:53]} 37. R8c4 {[%clk 0:00:04]}  Qd7 {[%clk 0:00:49]} 38. a4 {[%clk 0:00:04]}  b5 {[%clk 0:00:44]} 39. Rc7 {[%clk 0:00:04]}  Qd2 {[%clk 0:00:40]} 40. Rd1 {[%clk 0:00:03]}  Qb2 {[%clk 0:00:36]} 41. Rdd7 {[%clk 0:00:02]}  Bd4 {[%clk 0:00:26]} 0-1


[Site "https://www.chess.com"]

[Event "Titled Tuesday Blitz January 31 Late 2023"]
[White "Kleiman, Jake"]
[Black "Yuan, Qingyu"]
[WhiteFideId "2020041"]
[BlackFideId "8609772"]
[WhiteElo "2399"]
[BlackElo "2373"]
[Result "0-1"]
[Round "06"]
[TimeControl "180+2"]
[Date "2023.01.31"]
[WhiteClock "0:00:30"]
[BlackClock "0:00:36"]

1. e4 {[%clk 0:03:00]}  e5 {[%clk 0:03:00]} 2. Nf3 {[%clk 0:03:00]}  Nc6 {[%clk 0:03:00]} 3. Bc4 {[%clk 0:03:01]}  Bc5 {[%clk 0:03:00]} 4. c3 {[%clk 0:03:01]}  Nf6 {[%clk 0:03:01]} 5. d3 {[%clk 0:03:02]}  O-O {[%clk 0:03:01]} 6. O-O {[%clk 0:03:02]}  d5 {[%clk 0:03:02]} 7. exd5 {[%clk 0:03:03]}  Nxd5 {[%clk 0:03:03]} 8. Re1 {[%clk 0:03:03]}  Bg4 {[%clk 0:03:03]} 9. Nbd2 {[%clk 0:03:04]}  Nb6 {[%clk 0:02:57]} 10. Bb5 {[%clk 0:03:04]}  f6 {[%clk 0:02:47]} 11. a4 {[%clk 0:02:47]}  Ne7 {[%clk 0:02:30]} 12. a5 {[%clk 0:02:45]}  c6 {[%clk 0:02:25]} 13. axb6 {[%clk 0:02:29]}  cxb5 {[%clk 0:02:25]} 14. bxa7 {[%clk 0:02:28]}  Bxa7 {[%clk 0:02:26]} 15. Ra3 {[%clk 0:02:16]}  Qxd3 {[%clk 0:02:13]} 16. Qb3+ {[%clk 0:01:43]}  Qd5 {[%clk 0:02:01]} 17. h3 {[%clk 0:01:42]}  Be6 {[%clk 0:01:47]} 18. Qc2 {[%clk 0:01:36]}  Qc6 {[%clk 0:01:40]} 19. Qb1 {[%clk 0:01:21]}  Bb6 {[%clk 0:01:32]} 20. Rxa8 {[%clk 0:01:19]}  Rxa8 {[%clk 0:01:33]} 21. Ne4 {[%clk 0:01:16]}  Bd5 {[%clk 0:01:27]} 22. Nfd2 {[%clk 0:01:02]}  f5 {[%clk 0:01:17]} 23. Ng3 {[%clk 0:00:57]}  Bxg2 {[%clk 0:01:03]} 24. Rxe5 {[%clk 0:00:37]}  Bxh3 {[%clk 0:00:59]} 25. Nde4 {[%clk 0:00:31]}  fxe4 {[%clk 0:00:44]} 26. Rxe7 {[%clk 0:00:30]}  Qf6 {[%clk 0:00:36]} 0-1


[Site "https://www.chess.com"]

[Event "Titled Tuesday Blitz January 31 Late 2023"]
[White "Karolczuk, Iwo"]
[Black "Andreassen, Lars"]
[WhiteFideId "21816972"]
[BlackFideId "1504878"]
[WhiteElo "2343"]
[BlackElo "2168"]
[Result "1-0"]
[Round "06"]
[TimeControl "180+2"]
[Date "2023.01.31"]
[WhiteClock "0:00:33"]
[BlackClock "0:00:20"]

1. e4 {[%clk 0:03:00]}  d5 {[%clk 0:02:53]} 2. exd5 {[%clk 0:03:00]}  Nf6 {[%clk 0:02:54]} 3. Bb5+ {[%clk 0:02:58]}  Nbd7 {[%clk 0:02:53]} 4. c4 {[%clk 0:02:46]}  a6 {[%clk 0:02:54]} 5. Ba4 {[%clk 0:02:46]}  b5 {[%clk 0:02:54]} 6. cxb5 {[%clk 0:02:46]}  Nxd5 {[%clk 0:02:55]} 7. Ne2 {[%clk 0:02:38]}  N5b6 {[%clk 0:02:52]} 8. Bb3 {[%clk 0:02:30]}  axb5 {[%clk 0:02:52]} 9. O-O {[%clk 0:02:31]}  e6 {[%clk 0:02:52]} 10. d4 {[%clk 0:02:29]}  Bb7 {[%clk 0:02:48]} 11. Bf4 {[%clk 0:02:26]}  Bd6 {[%clk 0:02:44]} 12. Bxd6 {[%clk 0:02:23]}  cxd6 {[%clk 0:02:45]} 13. Nbc3 {[%clk 0:02:23]}  b4 {[%clk 0:02:44]} 14. Nb5 {[%clk 0:02:14]}  Qb8 {[%clk 0:02:35]} 15. Qd2 {[%clk 0:02:08]}  O-O {[%clk 0:02:24]} 16. Qxb4 {[%clk 0:02:07]}  d5 {[%clk 0:02:14]} 17. Rfc1 {[%clk 0:02:00]}  Ba6 {[%clk 0:02:14]} 18. a4 {[%clk 0:01:59]}  Rc8 {[%clk 0:02:04]} 19. Rxc8+ {[%clk 0:01:57]}  Qxc8 {[%clk 0:02:04]} 20. Rc1 {[%clk 0:01:55]}  Qb8 {[%clk 0:01:51]} 21. h3 {[%clk 0:01:37]}  h6 {[%clk 0:01:47]} 22. Rc3 {[%clk 0:01:34]}  Nf6 {[%clk 0:01:26]} 23. Ng3 {[%clk 0:01:31]}  h5 {[%clk 0:01:24]} 24. Nc7 {[%clk 0:01:25]}  Ra7 {[%clk 0:01:19]} 25. Nxa6 {[%clk 0:01:24]}  Rxa6 {[%clk 0:01:20]} 26. a5 {[%clk 0:01:24]}  h4 {[%clk 0:01:10]} 27. Nf1 {[%clk 0:01:19]}  Ne4 {[%clk 0:01:10]} 28. Rc2 {[%clk 0:01:05]}  Nd6 {[%clk 0:00:47]} 29. Rc6 {[%clk 0:00:51]}  Ndc8 {[%clk 0:00:39]} 30. axb6 {[%clk 0:00:48]}  Rxb6 {[%clk 0:00:33]} 31. Rxb6 {[%clk 0:00:48]}  Nxb6 {[%clk 0:00:33]} 32. Ne3 {[%clk 0:00:45]}  Qa7 {[%clk 0:00:30]} 33. Qa3 {[%clk 0:00:40]}  Qc7 {[%clk 0:00:30]} 34. Qc5 {[%clk 0:00:40]}  Qb7 {[%clk 0:00:24]} 35. Bd1 {[%clk 0:00:37]}  Nd7 {[%clk 0:00:23]} 36. Qc3 {[%clk 0:00:37]}  Nf6 {[%clk 0:00:23]} 37. Bc2 {[%clk 0:00:36]}  Qa7 {[%clk 0:00:20]} 38. Qc8+ {[%clk 0:00:33]} 1-0


[Site "https://www.chess.com"]

[Event "Titled Tuesday Blitz January 31 Late 2023"]
[White "Kouskoutis, Georgios-Alexandros"]
[Black "Makhnev, Denis"]
[WhiteFideId "4234049"]
[BlackFideId "13707647"]
[WhiteElo "2295"]
[BlackElo "2483"]
[Result "0-1"]
[Round "06"]
[TimeControl "180+2"]
[Date "2023.01.31"]
[WhiteClock "0:00:02"]
[BlackClock "0:01:42"]

1. c4 {[%clk 0:03:00]}  e5 {[%clk 0:02:55]} 2. g3 {[%clk 0:02:59]}  c6 {[%clk 0:02:55]} 3. Bg2 {[%clk 0:03:00]}  d5 {[%clk 0:02:56]} 4. cxd5 {[%clk 0:03:00]}  cxd5 {[%clk 0:02:56]} 5. d4 {[%clk 0:03:01]}  e4 {[%clk 0:02:57]} 6. Nc3 {[%clk 0:03:01]}  Nf6 {[%clk 0:02:56]} 7. Bg5 {[%clk 0:03:01]}  Nbd7 {[%clk 0:02:56]} 8. e3 {[%clk 0:02:57]}  h6 {[%clk 0:02:56]} 9. Bxf6 {[%clk 0:02:56]}  Nxf6 {[%clk 0:02:57]} 10. Nge2 {[%clk 0:02:56]}  Bd7 {[%clk 0:02:54]} 11. O-O {[%clk 0:02:42]}  Be7 {[%clk 0:02:48]} 12. Nf4 {[%clk 0:02:31]}  Bc6 {[%clk 0:02:47]} 13. Nh5 {[%clk 0:02:24]}  O-O {[%clk 0:02:47]} 14. Nxf6+ {[%clk 0:02:20]}  Bxf6 {[%clk 0:02:48]} 15. f3 {[%clk 0:01:43]}  exf3 {[%clk 0:02:47]} 16. Qxf3 {[%clk 0:01:43]}  Qe7 {[%clk 0:02:43]} 17. Rae1 {[%clk 0:01:19]}  Rad8 {[%clk 0:02:42]} 18. Qf5 {[%clk 0:00:45]}  Qe6 {[%clk 0:02:38]} 19. Qxe6 {[%clk 0:00:40]}  fxe6 {[%clk 0:02:39]} 20. h4 {[%clk 0:00:31]}  g5 {[%clk 0:02:36]} 21. hxg5 {[%clk 0:00:23]}  Bxg5 {[%clk 0:02:37]} 22. Bh3 {[%clk 0:00:23]}  Rde8 {[%clk 0:02:35]} 23. Rxf8+ {[%clk 0:00:19]}  Kxf8 {[%clk 0:02:35]} 24. Kf2 {[%clk 0:00:19]}  Ke7 {[%clk 0:02:33]} 25. Ke2 {[%clk 0:00:19]}  Rg8 {[%clk 0:02:30]} 26. Rg1 {[%clk 0:00:13]}  Bf6 {[%clk 0:02:29]} 27. Kf2 {[%clk 0:00:13]}  b5 {[%clk 0:02:24]} 28. Ne2 {[%clk 0:00:13]}  Kd6 {[%clk 0:02:18]} 29. Nf4 {[%clk 0:00:13]}  Bd7 {[%clk 0:02:19]} 30. Rc1 {[%clk 0:00:09]}  a5 {[%clk 0:02:14]} 31. Bf1 {[%clk 0:00:08]}  e5 {[%clk 0:02:08]} 32. dxe5+ {[%clk 0:00:07]}  Bxe5 {[%clk 0:02:09]} 33. b3 {[%clk 0:00:05]}  Bc6 {[%clk 0:02:05]} 34. Bg2 {[%clk 0:00:04]}  Rg5 {[%clk 0:01:55]} 35. Rh1 {[%clk 0:00:03]}  Bg7 {[%clk 0:01:55]} 36. Rh5 {[%clk 0:00:02]}  a4 {[%clk 0:01:49]} 37. bxa4 {[%clk 0:00:02]}  bxa4 {[%clk 0:01:49]} 38. Rxg5 {[%clk 0:00:02]}  hxg5 {[%clk 0:01:49]} 39. Nd3 {[%clk 0:00:03]}  Bb5 {[%clk 0:01:50]} 40. Ke2 {[%clk 0:00:03]}  Bc4 {[%clk 0:01:49]} 41. a3 {[%clk 0:00:02]}  Bb2 {[%clk 0:01:50]} 42. Kd2 {[%clk 0:00:02]}  Bxa3 {[%clk 0:01:50]} 43. Bh3 {[%clk 0:00:02]}  Ke7 {[%clk 0:01:43]} 44. Bf5 {[%clk 0:00:03]}  Bd6 {[%clk 0:01:43]} 45. g4 {[%clk 0:00:02]}  a3 {[%clk 0:01:43]} 46. Nc1 {[%clk 0:00:01]}  a2 {[%clk 0:01:41]} 47. Nxa2 {[%clk 0:00:02]}  Bxa2 {[%clk 0:01:42]} 48. e4 {[%clk 0:00:02]}  d4 {[%clk 0:01:40]} 49. Kd3 {[%clk 0:00:02]}  Be5 {[%clk 0:01:41]} 50. Bg6 {[%clk 0:00:02]}  Kd6 {[%clk 0:01:41]} 51. Bf5 {[%clk 0:00:02]}  Kc5 {[%clk 0:01:42]} 0-1


[Site "https://www.chess.com"]

[Event "Titled Tuesday Blitz January 31 Late 2023"]
[White "Boros, Denes"]
[Black "Iskusnyh, Sergei"]
[WhiteFideId "722340"]
[BlackFideId "4120027"]
[WhiteElo "2406"]
[BlackElo "2440"]
[Result "0-1"]
[Round "06"]
[TimeControl "180+2"]
[Date "2023.01.31"]
[WhiteClock "0:00:03"]
[BlackClock "0:00:08"]

1. d4 {[%clk 0:03:00]}  d5 {[%clk 0:02:59]} 2. Nc3 {[%clk 0:03:01]}  Nf6 {[%clk 0:02:57]} 3. Nf3 {[%clk 0:03:01]}  Bf5 {[%clk 0:02:49]} 4. Nh4 {[%clk 0:03:00]}  Bd7 {[%clk 0:02:39]} 5. g3 {[%clk 0:03:00]}  e6 {[%clk 0:02:27]} 6. Bg2 {[%clk 0:03:00]}  Be7 {[%clk 0:02:27]} 7. O-O {[%clk 0:02:57]}  O-O {[%clk 0:02:27]} 8. b3 {[%clk 0:02:47]}  c5 {[%clk 0:02:19]} 9. dxc5 {[%clk 0:02:45]}  Bxc5 {[%clk 0:02:18]} 10. e4 {[%clk 0:02:43]}  dxe4 {[%clk 0:02:18]} 11. Nxe4 {[%clk 0:02:44]}  Nxe4 {[%clk 0:02:17]} 12. Bxe4 {[%clk 0:02:45]}  Bc6 {[%clk 0:02:17]} 13. Bxh7+ {[%clk 0:02:32]}  Kxh7 {[%clk 0:02:16]} 14. Qh5+ {[%clk 0:02:32]}  Kg8 {[%clk 0:02:16]} 15. Qxc5 {[%clk 0:02:33]}  Nd7 {[%clk 0:02:06]} 16. Qe3 {[%clk 0:02:31]}  Qf6 {[%clk 0:01:55]} 17. Ba3 {[%clk 0:02:28]}  Rfd8 {[%clk 0:01:47]} 18. Rae1 {[%clk 0:02:13]}  Nf8 {[%clk 0:01:41]} 19. Bb4 {[%clk 0:01:50]}  Ng6 {[%clk 0:01:28]} 20. Bc3 {[%clk 0:01:48]}  e5 {[%clk 0:01:11]} 21. Nxg6 {[%clk 0:01:27]}  Qxg6 {[%clk 0:01:11]} 22. Bxe5 {[%clk 0:01:23]}  Re8 {[%clk 0:01:01]} 23. Qc3 {[%clk 0:01:13]}  Bb5 {[%clk 0:00:59]} 24. Bf4 {[%clk 0:00:39]}  Bxf1 {[%clk 0:00:57]} 25. Rxf1 {[%clk 0:00:40]}  Re2 {[%clk 0:00:56]} 26. Qf3 {[%clk 0:00:39]}  Qe4 {[%clk 0:00:54]} 27. Qxe4 {[%clk 0:00:37]}  Rxe4 {[%clk 0:00:55]} 28. Rd1 {[%clk 0:00:37]}  Re2 {[%clk 0:00:54]} 29. c4 {[%clk 0:00:35]}  Rxa2 {[%clk 0:00:52]} 30. Rd7 {[%clk 0:00:35]}  b6 {[%clk 0:00:52]} 31. b4 {[%clk 0:00:32]}  Rc8 {[%clk 0:00:51]} 32. Rd4 {[%clk 0:00:29]}  Rc2 {[%clk 0:00:50]} 33. b5 {[%clk 0:00:26]}  R8xc4 {[%clk 0:00:46]} 34. Rd7 {[%clk 0:00:26]}  Ra4 {[%clk 0:00:44]} 35. Rd8+ {[%clk 0:00:27]}  Kh7 {[%clk 0:00:44]} 36. Rd7 {[%clk 0:00:28]}  f6 {[%clk 0:00:44]} 37. h4 {[%clk 0:00:26]}  Rb2 {[%clk 0:00:41]} 38. h5 {[%clk 0:00:26]}  Rxf4 {[%clk 0:00:22]} 39. gxf4 {[%clk 0:00:27]}  Rxb5 {[%clk 0:00:22]} 40. Rxa7 {[%clk 0:00:28]}  Rxh5 {[%clk 0:00:22]} 41. Kg2 {[%clk 0:00:27]}  Rc5 {[%clk 0:00:20]} 42. Kf3 {[%clk 0:00:26]}  b5 {[%clk 0:00:20]} 43. Rb7 {[%clk 0:00:26]}  f5 {[%clk 0:00:20]} 44. Ke3 {[%clk 0:00:24]}  Kg6 {[%clk 0:00:17]} 45. Kd4 {[%clk 0:00:25]}  Rc4+ {[%clk 0:00:17]} 46. Ke3 {[%clk 0:00:24]}  Re4+ {[%clk 0:00:17]} 47. Kf3 {[%clk 0:00:24]}  Rb4 {[%clk 0:00:17]} 48. Kg3 {[%clk 0:00:21]}  Kh6 {[%clk 0:00:15]} 49. Rb6+ {[%clk 0:00:19]}  g6 {[%clk 0:00:15]} 50. Rb7 {[%clk 0:00:20]}  Rb1 {[%clk 0:00:15]} 51. Rb8 {[%clk 0:00:16]}  b4 {[%clk 0:00:14]} 52. Kf3 {[%clk 0:00:16]}  b3 {[%clk 0:00:14]} 53. Kg3 {[%clk 0:00:17]}  Kg7 {[%clk 0:00:13]} 54. Rb6 {[%clk 0:00:16]}  Kf7 {[%clk 0:00:12]} 55. Kf3 {[%clk 0:00:16]}  Ke7 {[%clk 0:00:11]} 56. Rxg6 {[%clk 0:00:13]}  Kd7 {[%clk 0:00:11]} 57. Rb6 {[%clk 0:00:14]}  Kc7 {[%clk 0:00:12]} 58. Rb4 {[%clk 0:00:13]}  Kc6 {[%clk 0:00:12]} 59. Rb8 {[%clk 0:00:11]}  Kc5 {[%clk 0:00:12]} 60. Rc8+ {[%clk 0:00:06]}  Kd4 {[%clk 0:00:12]} 61. Rb8 {[%clk 0:00:05]}  Kc4 {[%clk 0:00:12]} 62. Rc8+ {[%clk 0:00:06]}  Kd3 {[%clk 0:00:12]} 63. Rb8 {[%clk 0:00:06]}  Kc2 {[%clk 0:00:12]} 64. Rc8+ {[%clk 0:00:07]}  Kd2 {[%clk 0:00:12]} 65. Rd8+ {[%clk 0:00:06]}  Kc2 {[%clk 0:00:12]} 66. Rc8+ {[%clk 0:00:06]}  Kb2 {[%clk 0:00:10]} 67. Ke3 {[%clk 0:00:05]}  Rc1 {[%clk 0:00:09]} 68. Rb8 {[%clk 0:00:05]}  Rc5 {[%clk 0:00:09]} 69. Kd4 {[%clk 0:00:05]}  Ra5 {[%clk 0:00:09]} 70. Kc4 {[%clk 0:00:06]}  Ra3 {[%clk 0:00:08]} 71. Kd4 {[%clk 0:00:06]}  Ka2 {[%clk 0:00:08]} 72. Ke5 {[%clk 0:00:06]}  Ra5+ {[%clk 0:00:08]} 73. Ke6 {[%clk 0:00:02]}  b2 {[%clk 0:00:08]} 74. Ra8 {[%clk 0:00:03]}  Rxa8 {[%clk 0:00:08]} 0-1


[Site "https://www.chess.com"]

[Event "Titled Tuesday Blitz January 31 Late 2023"]
[White "Salimova, Nurgyul"]
[Black "Martinez Reyes, Pedro Ramon"]
[WhiteFideId "2915138"]
[BlackFideId "3901807"]
[WhiteElo "2391"]
[BlackElo "2376"]
[Result "1-0"]
[Round "06"]
[TimeControl "180+2"]
[Date "2023.01.31"]
[WhiteClock "0:01:00"]
[BlackClock "0:00:08"]

1. e4 {[%clk 0:03:00]}  e6 {[%clk 0:03:00]} 2. d4 {[%clk 0:03:00]}  d5 {[%clk 0:03:00]} 3. Nd2 {[%clk 0:03:00]}  Nf6 {[%clk 0:03:00]} 4. e5 {[%clk 0:02:59]}  Ne4 {[%clk 0:03:01]} 5. Nxe4 {[%clk 0:02:51]}  dxe4 {[%clk 0:03:01]} 6. Bc4 {[%clk 0:02:52]}  Qd7 {[%clk 0:03:01]} 7. Ne2 {[%clk 0:02:35]}  c5 {[%clk 0:03:01]} 8. c3 {[%clk 0:02:34]}  cxd4 {[%clk 0:02:59]} 9. cxd4 {[%clk 0:02:31]}  Nc6 {[%clk 0:02:59]} 10. O-O {[%clk 0:02:28]}  Na5 {[%clk 0:02:59]} 11. Bb3 {[%clk 0:02:24]}  Nxb3 {[%clk 0:02:59]} 12. Qxb3 {[%clk 0:02:22]}  b6 {[%clk 0:02:59]} 13. Qg3 {[%clk 0:02:13]}  Ba6 {[%clk 0:02:56]} 14. Re1 {[%clk 0:02:12]}  Bxe2 {[%clk 0:02:36]} 15. Rxe2 {[%clk 0:02:13]}  Qd5 {[%clk 0:02:09]} 16. Be3 {[%clk 0:02:04]}  Rc8 {[%clk 0:02:08]} 17. h4 {[%clk 0:02:01]}  g6 {[%clk 0:01:58]} 18. Bg5 {[%clk 0:01:58]}  Bg7 {[%clk 0:01:50]} 19. Qa3 {[%clk 0:01:57]}  Bf8 {[%clk 0:01:46]} 20. Qxa7 {[%clk 0:01:53]}  b5 {[%clk 0:01:15]} 21. Bf6 {[%clk 0:01:44]}  Rg8 {[%clk 0:01:13]} 22. a4 {[%clk 0:01:39]}  Ra8 {[%clk 0:01:07]} 23. Qb6 {[%clk 0:01:35]}  bxa4 {[%clk 0:01:04]} 24. Rc2 {[%clk 0:01:32]}  Be7 {[%clk 0:00:56]} 25. Rxa4 {[%clk 0:01:30]}  Bxf6 {[%clk 0:00:19]} 26. exf6 {[%clk 0:01:30]}  e3 {[%clk 0:00:11]} 27. Rxa8+ {[%clk 0:01:21]}  Qxa8 {[%clk 0:00:12]} 28. Qb5+ {[%clk 0:01:21]}  Kd8 {[%clk 0:00:09]} 29. Qb6+ {[%clk 0:01:15]}  Ke8 {[%clk 0:00:09]} 30. fxe3 {[%clk 0:01:13]}  g5 {[%clk 0:00:09]} 31. Qd6 {[%clk 0:01:01]}  Qd8 {[%clk 0:00:08]} 32. Rc8 {[%clk 0:01:00]} 1-0


[Site "https://www.chess.com"]

[Event "Titled Tuesday Blitz January 31 Late 2023"]
[White "Mikaelyan, Arman"]
[Black "Bayo Milagro, Alvaro"]
[WhiteFideId "13304852"]
[BlackFideId "22275240"]
[WhiteElo "2523"]
[BlackElo "2287"]
[Result "1-0"]
[Round "06"]
[TimeControl "180+2"]
[Date "2023.01.31"]
[WhiteClock "0:00:10"]
[BlackClock "0:00:04"]

1. a3 {[%clk 0:02:47]}  a6 {[%clk 0:02:56]} 2. h3 {[%clk 0:02:47]}  h6 {[%clk 0:02:56]} 3. e3 {[%clk 0:02:47]}  e6 {[%clk 0:02:56]} 4. Nf3 {[%clk 0:02:46]}  Nf6 {[%clk 0:02:57]} 5. d4 {[%clk 0:02:46]}  b6 {[%clk 0:02:56]} 6. c4 {[%clk 0:02:46]}  Bb7 {[%clk 0:02:56]} 7. Nc3 {[%clk 0:02:47]}  d5 {[%clk 0:02:56]} 8. cxd5 {[%clk 0:02:42]}  exd5 {[%clk 0:02:56]} 9. Bd3 {[%clk 0:02:38]}  Bd6 {[%clk 0:02:56]} 10. O-O {[%clk 0:02:37]}  O-O {[%clk 0:02:57]} 11. Ne5 {[%clk 0:02:35]}  Nbd7 {[%clk 0:02:55]} 12. f4 {[%clk 0:02:36]}  c5 {[%clk 0:02:54]} 13. Qf3 {[%clk 0:02:34]}  Qe7 {[%clk 0:02:50]} 14. Bd2 {[%clk 0:02:30]}  Rfe8 {[%clk 0:02:46]} 15. Be1 {[%clk 0:02:30]}  Ne4 {[%clk 0:02:41]} 16. Nxe4 {[%clk 0:02:19]}  dxe4 {[%clk 0:02:41]} 17. Bxe4 {[%clk 0:02:20]}  Bxe4 {[%clk 0:02:40]} 18. Qxe4 {[%clk 0:02:21]}  cxd4 {[%clk 0:02:38]} 19. exd4 {[%clk 0:02:21]}  Nf6 {[%clk 0:02:35]} 20. Qf3 {[%clk 0:02:20]}  Qe6 {[%clk 0:02:30]} 21. Bc3 {[%clk 0:02:17]}  Qd5 {[%clk 0:02:23]} 22. Rae1 {[%clk 0:02:11]}  Rac8 {[%clk 0:02:18]} 23. Qd3 {[%clk 0:02:05]}  b5 {[%clk 0:02:05]} 24. Re3 {[%clk 0:02:03]}  Nh7 {[%clk 0:01:57]} 25. Rfe1 {[%clk 0:01:57]}  Nf8 {[%clk 0:01:56]} 26. f5 {[%clk 0:01:50]}  Nh7 {[%clk 0:01:51]} 27. Ng4 {[%clk 0:01:36]}  Rxe3 {[%clk 0:01:49]} 28. Nxe3 {[%clk 0:01:36]}  Qc6 {[%clk 0:01:44]} 29. Ng4 {[%clk 0:01:30]}  h5 {[%clk 0:01:35]} 30. Ne5 {[%clk 0:01:25]}  Qd5 {[%clk 0:01:35]} 31. Qf3 {[%clk 0:01:02]}  Nf6 {[%clk 0:01:29]} 32. Kf2 {[%clk 0:00:53]}  Qxf3+ {[%clk 0:01:29]} 33. Nxf3 {[%clk 0:00:36]}  Bxa3 {[%clk 0:01:26]} 34. Ra1 {[%clk 0:00:33]}  Bxb2 {[%clk 0:00:50]} 35. Bxb2 {[%clk 0:00:31]}  Rc2+ {[%clk 0:00:51]} 36. Kg3 {[%clk 0:00:19]}  Rxb2 {[%clk 0:00:51]} 37. Rxa6 {[%clk 0:00:20]}  Kf8 {[%clk 0:00:49]} 38. Ne5 {[%clk 0:00:20]}  Rb3+ {[%clk 0:00:43]} 39. Kh4 {[%clk 0:00:17]}  Rb2 {[%clk 0:00:24]} 40. g4 {[%clk 0:00:16]}  hxg4 {[%clk 0:00:24]} 41. hxg4 {[%clk 0:00:17]}  Ne4 {[%clk 0:00:22]} 42. Ra8+ {[%clk 0:00:15]}  Ke7 {[%clk 0:00:22]} 43. Ra7+ {[%clk 0:00:16]}  Kd6 {[%clk 0:00:16]} 44. Nxf7+ {[%clk 0:00:14]}  Kd5 {[%clk 0:00:16]} 45. Rd7+ {[%clk 0:00:14]}  Kc6 {[%clk 0:00:16]} 46. Ne5+ {[%clk 0:00:14]}  Kb6 {[%clk 0:00:16]} 47. Kh3 {[%clk 0:00:10]}  Rb3+ {[%clk 0:00:13]} 48. Kg2 {[%clk 0:00:11]}  Rg3+ {[%clk 0:00:12]} 49. Kh2 {[%clk 0:00:11]}  Rc3 {[%clk 0:00:10]} 50. Rxg7 {[%clk 0:00:10]}  b4 {[%clk 0:00:10]} 51. f6 {[%clk 0:00:11]}  Rc2+ {[%clk 0:00:07]} 52. Kh3 {[%clk 0:00:10]}  Rc3+ {[%clk 0:00:06]} 53. Kh4 {[%clk 0:00:10]}  Rc1 {[%clk 0:00:06]} 54. g5 {[%clk 0:00:09]}  Rh1+ {[%clk 0:00:05]} 55. Kg4 {[%clk 0:00:10]}  b3 {[%clk 0:00:05]} 56. f7 {[%clk 0:00:09]}  Rf1 {[%clk 0:00:03]} 57. g6 {[%clk 0:00:07]}  b2 {[%clk 0:00:03]} 58. Nc4+ {[%clk 0:00:08]}  Kc6 {[%clk 0:00:03]} 59. Nxb2 {[%clk 0:00:09]}  Kd5 {[%clk 0:00:04]} 60. Rg8 {[%clk 0:00:08]}  Nf6+ {[%clk 0:00:02]} 61. Kg5 {[%clk 0:00:08]}  Ne4+ {[%clk 0:00:02]} 62. Kg4 {[%clk 0:00:08]}  Nf6+ {[%clk 0:00:03]} 63. Kg3 {[%clk 0:00:09]}  Ne4+ {[%clk 0:00:03]} 64. Kg2 {[%clk 0:00:09]}  Rf2+ {[%clk 0:00:02]} 65. Kg1 {[%clk 0:00:10]}  Rxb2 {[%clk 0:00:03]} 66. f8=Q {[%clk 0:00:10]}  Kxd4 {[%clk 0:00:04]} 67. Qg7+ {[%clk 0:00:10]} 1-0


[Site "https://www.chess.com"]